bitfinex-derivatives/quotes_BTCF0:USTF0_20251219
["timestamp","ask_amount","ask_price","bid_price","bid_amount"]
[1766139370240,0.00568,88284.0,88251.0,0.0148974]
[1766139370241,0.0113339,88279.0,88263.0,0.0113359]
[1766139370440,0.00016997,88280.0,88262.0,0.00016997]
[1766139370638,0.011335,88271.0,88253.0,0.0113371]
[1766139370836,0.00016997,88280.0,88253.0,0.0113371]
[1766139370837,0.0113341,88278.0,88254.0,0.00568]
[1766139371140,0.011335,88271.0,88254.0,0.00568]
[1766139371343,0.00016997,88280.0,88254.0,0.00568]
[1766139371645,0.0113343,88276.0,88260.0,0.0113362]
[1766139371846,0.0113346,88274.0,88258.0,0.00016997]
[1766139372144,0.0113346,88274.0,88259.0,0.0113364]
[1766139372948,0.00184,88275.0,88258.0,0.00016997]
[1766139373130,0.00016997,88280.0,88258.0,0.00016997]
[1766139373335,0.00016997,88280.0,88267.0,0.0113354]
[1766139373540,0.00016997,88280.0,88260.0,0.0113363]
[1766139373541,0.00568,88279.0,88260.0,0.0113363]
[1766139373938,0.00568,88279.0,88267.0,0.0113354]
[1766139374642,0.00568,88279.0,88264.0,0.0113357]
[1766139375145,0.00568,88279.0,88266.0,0.0113355]
[1766139375348,0.00016997,88280.0,88272.0,0.0113348]
[1766139375742,0.00016997,88280.0,88269.0,0.0113351]
[1766139376047,0.00016997,88280.0,88268.0,0.0113353]
[1766139377241,0.00016997,88280.0,88258.0,0.00016997]
[1766139377242,0.00016997,88280.0,88270.0,0.011335]
[1766139377448,0.00016997,88280.0,88267.0,0.0113353]
[1766139377745,0.00016997,88280.0,88270.0,0.0113349]
[1766139378646,0.00016997,88280.0,88264.0,0.00564]
[1766139378946,0.00016997,88280.0,88268.0,0.0113353]
[1766139379339,0.00016997,88280.0,88270.0,0.011335]
[1766139381042,0.00016997,88280.0,88264.0,0.00564]
[1766139381349,0.00016997,88280.0,88270.0,0.011335]
[1766139381550,0.00016997,88280.0,88264.0,0.00564]
[1766139382047,0.00016997,88280.0,88271.0,0.0113349]
[1766139382748,0.00016997,88280.0,88273.0,0.0113346]
[1766139383147,0.00016997,88280.0,88275.0,0.0113344]
[1766139383345,0.00016997,88280.0,88272.0,0.0113347]
[1766139384046,0.00016997,88280.0,88274.0,0.0113345]
[1766139384241,0.00568,88286.0,88274.0,0.0113345]
[1766139384639,0.00568,88286.0,88276.0,0.0113342]
[1766139384944,0.00568,88286.0,88279.0,0.0113338]
[1766139385244,0.0113313,88299.0,88276.0,0.00568]
[1766139385451,0.0113316,88297.0,88280.0,0.0113337]
[1766139386150,0.0113322,88293.0,88280.0,0.00016997]
[1766139386954,0.0113317,88296.0,88281.0,0.0113336]
[1766139387842,0.0113317,88296.0,88261.0,0.0113362]
[1766139387843,0.00016992,88297.0,88274.0,0.0113344]
[1766139388045,0.011333,88287.0,88273.0,0.00568]
[1766139388242,0.0113326,88290.0,88273.0,0.00568]
[1766139388442,0.0113326,88290.0,88275.0,0.0113344]
[1766139389956,0.00568,88292.0,88279.0,0.0113338]
[1766139390147,0.00016992,88297.0,88274.0,0.00016997]
[1766139390355,0.00076,88296.0,88281.0,0.0113336]
[1766139390650,0.0113319,88295.0,88281.0,0.0113336]
[1766139390848,0.0113319,88295.0,88278.0,0.011334]
[1766139391253,0.0113321,88293.0,88278.0,0.011334]
[1766139392654,0.0113324,88291.0,88275.0,0.0113343]
[1766139392950,0.00076,88296.0,88274.0,0.00016997]
[1766139394252,0.0113318,88295.0,88279.0,0.0113338]
[1766139394549,0.00076,88296.0,88274.0,0.00016997]
[1766139394757,0.0113319,88295.0,88274.0,0.00016997]
[1766139395455,0.00076,88296.0,88274.0,0.00016997]
[1766139395654,0.0120918,88296.0,88274.0,0.00016997]
[1766139395856,0.011332,88294.0,88278.0,0.0113339]
[1766139396747,0.00076,88296.0,88280.0,0.0113337]
[1766139397056,0.0113319,88295.0,88280.0,0.0113337]
[1766139397758,0.0113322,88292.0,88276.0,0.0113342]
[1766139398667,0.0113319,88295.0,88278.0,0.0113339]
[1766139399950,0.0113319,88295.0,88280.0,0.0113337]
[1766139400152,0.00076,88296.0,88284.0,0.0113332]
[1766139400352,0.00076,88296.0,88274.0,0.00016997]
[1766139401246,0.00076,88296.0,88285.0,0.0113331]
[1766139402465,0.011332,88294.0,88274.0,0.00016997]
[1766139403358,0.0113323,88292.0,88278.0,0.011334]
[1766139403858,0.00076,88296.0,88274.0,0.00016997]
[1766139403859,0.00076,88296.0,88275.0,0.0113343]
[1766139404062,0.00076,88296.0,88277.0,0.011334]
[1766139404258,0.00076,88296.0,88274.0,0.00016997]
[1766139404259,0.0113323,88292.0,88274.0,0.01150447]
[1766139404971,0.00076,88296.0,88274.0,0.01150447]
[1766139405354,0.0113327,88289.0,88274.0,0.01150447]
[1766139405660,0.00076,88296.0,88274.0,0.00016997]
[1766139405860,0.0113327,88288.0,88261.0,0.05196426]
[1766139406163,0.00332,88287.0,88261.0,0.0113361]
[1766139406467,0.00332,88287.0,88259.0,0.0113364]
[1766139406756,0.0113347,88273.0,88259.0,0.0113364]
[1766139406963,0.0113344,88276.0,88259.0,0.0113364]
[1766139407162,0.011333,88286.0,88256.0,0.00568]
[1766139407163,0.00584997,88275.0,88257.0,0.00016997]
[1766139407355,0.0113347,88273.0,88257.0,0.00016997]
[1766139407665,0.00584997,88275.0,88259.0,0.0113363]
[1766139408958,0.0113348,88272.0,88259.0,0.0113363]
[1766139409361,0.01718447,88275.0,88259.0,0.0113363]
[1766139409561,0.00584997,88275.0,88257.0,0.00016997]
[1766139410262,0.00584997,88275.0,88266.0,0.0113355]
[1766139411066,0.00584997,88275.0,88263.0,0.0113359]
[1766139412055,0.00584997,88275.0,88265.0,0.0113356]
[1766139412258,0.00584997,88275.0,88262.0,0.011336]
[1766139413368,0.00016997,88275.0,88262.0,0.0113361]
[1766139413570,0.00176997,88275.0,88262.0,0.0113361]
[1766139414773,0.00176997,88275.0,88264.0,0.0113358]
[1766139420881,0.00176997,88275.0,88263.0,0.0113359]
[1766139423281,0.00176997,88275.0,88257.0,0.00016997]
[1766139423873,0.0113363,88260.0,88257.0,7e-08]
[1766139424182,0.0113356,88266.0,88257.0,7e-08]
[1766139424369,0.0113358,88264.0,88257.0,7e-08]
[1766139424978,0.0113354,88268.0,88257.0,7e-08]
[1766139426474,0.00568,88271.0,88257.0,7e-08]
[1766139426676,0.0113356,88266.0,88257.0,7e-08]
[1766139426871,0.00016997,88275.0,88257.0,7e-08]
[1766139427380,0.00016997,88275.0,88265.0,0.0113356]
[1766139427577,0.0113328,88288.0,88257.0,7e-08]
[1766139427783,0.0113313,88300.0,88257.0,7e-08]
[1766139427986,0.00356,88297.0,88280.0,0.0113337]
[1766139428577,0.0113317,88296.0,88280.0,0.0113337]
[1766139428789,0.00372997,88297.0,88280.0,0.01150367]
[1766139429380,0.00372997,88297.0,88280.0,0.00016997]
[1766139429587,0.00372997,88297.0,88280.0,0.01150367]
[1766139429885,0.00016997,88297.0,88285.0,0.0113331]
[1766139430083,4e-08,88298.0,88291.0,0.0113323]
[1766139430284,4e-08,88298.0,88281.0,0.00564]
[1766139430485,4e-08,88298.0,88290.0,0.0113324]
[1766139430985,4e-08,88298.0,88287.0,0.0113328]
[1766139431181,4e-08,88298.0,88283.0,0.0113333]
[1766139431386,4e-08,88298.0,88280.0,0.00016997]
[1766139431387,0.011332,88294.0,88280.0,0.00584997]
[1766139432082,0.0113324,88291.0,88280.0,0.00016997]
[1766139432287,0.00564,88296.0,88280.0,0.00016997]
[1766139433175,0.0113323,88292.0,88280.0,0.00016997]
[1766139433896,0.0113328,88288.0,88271.0,0.00568]
[1766139434079,0.00564,88296.0,88271.0,0.00568]
[1766139434080,0.0113331,88286.0,88271.0,0.00568]
[1766139434391,0.00568,88285.0,88268.0,0.0113352]
[1766139434882,0.00568,88285.0,88268.0,0.01150517]
[1766139434883,0.0113333,88284.0,88268.0,0.01150517]
[1766139435089,0.00584997,88285.0,88268.0,0.01150517]
[1766139438083,0.00584997,88285.0,88270.0,0.0113349]
[1766139438286,4e-08,88298.0,88271.0,0.00568]
[1766139438484,0.00356,88297.0,88283.0,0.0113333]
[1766139439288,0.00356,88297.0,88271.0,0.00568]
[1766139439289,0.00356,88297.0,88279.0,0.0113338]
[1766139439677,4e-08,88298.0,88280.0,0.00564]
[1766139440285,4e-08,88298.0,88283.0,0.0113333]
[1766139441280,4e-08,88298.0,88285.0,0.011333]
[1766139441486,0.00308,88303.0,88285.0,0.011333]
[1766139441790,0.0113312,88301.0,88282.0,0.0113335]
[1766139442699,0.0113314,88299.0,88282.0,0.0113335]
[1766139442889,0.00016985,88300.0,88280.0,0.00564]
[1766139443079,0.0113318,88296.0,88280.0,0.00564]
[1766139443683,0.0113318,88296.0,88280.0,0.0169737]
[1766139444094,0.0113314,88299.0,88282.0,0.0113335]
[1766139445488,0.0113316,88297.0,88282.0,0.0113335]
[1766139445802,0.0113315,88298.0,88284.0,0.0113332]
[1766139446491,0.0113315,88298.0,88280.0,0.00564]
[1766139446695,0.0113315,88298.0,88281.0,0.0113335]
[1766139446891,0.0113315,88298.0,88283.0,0.0113333]
[1766139447282,0.0113315,88298.0,88280.0,0.0169737]
[1766139447597,0.0113317,88297.0,88282.0,0.0113335]
[1766139447799,0.00016985,88300.0,88268.0,0.00016997]
[1766139447800,0.0113314,88299.0,88268.0,0.00016997]
[1766139447994,0.00016985,88300.0,88268.0,0.00016997]
[1766139448294,0.0113326,88289.0,88268.0,0.00016997]
[1766139448498,0.0137326,88289.0,88275.0,0.0113344]
[1766139448899,0.0024,88289.0,88275.0,0.0113344]
[1766139449094,0.0024,88289.0,88268.0,0.00584997]
[1766139449298,0.0024,88289.0,88280.0,0.0113337]
[1766139450202,0.0024,88289.0,88277.0,0.011334]
[1766139451302,0.0024,88289.0,88268.0,0.00584997]
[1766139451698,0.0024,88289.0,88268.0,0.00016997]
[1766139451996,0.0024,88289.0,88254.0,0.011337]
[1766139451997,0.0113351,88270.0,88254.0,0.011337]
[1766139452202,0.0113351,88270.0,88251.0,2.38052]
[1766139452203,0.0113351,88270.0,88255.0,0.0113369]
[1766139452387,0.00432,88273.0,88255.0,0.0113369]
[1766139452388,0.0156547,88273.0,88255.0,0.0113369]
[1766139452588,0.0156547,88273.0,88258.0,0.0022661]
[1766139452791,0.00432,88273.0,88258.0,0.0022661]
[1766139453194,0.00016997,88274.0,88258.0,0.0022661]
[1766139453498,0.00108,88279.0,88266.0,0.0113356]
[1766139454893,0.00108,88279.0,88264.0,0.00016997]
[1766139455306,0.00016985,88281.0,88264.0,0.00016997]
[1766139456098,0.00168,88286.0,88272.0,0.0113347]
[1766139456700,0.0113326,88290.0,88272.0,0.0113347]
[1766139458203,0.00232,88292.0,88275.0,0.0113344]
[1766139458905,0.011332,88294.0,88275.0,0.0113344]
[1766139459111,0.00264,88293.0,88275.0,0.0113344]
[1766139459301,0.00264,88293.0,88278.0,0.011334]
[1766139459498,0.00264,88293.0,88275.0,0.0113344]
[1766139459699,0.0113322,88292.0,88272.0,0.0113347]
[1766139459901,0.0113328,88288.0,88272.0,0.0113347]
[1766139460102,0.00264,88293.0,88268.0,0.0113352]
[1766139460303,0.011333,88287.0,88270.0,0.011335]
[1766139460503,0.0113332,88285.0,88270.0,0.011335]
[1766139463514,0.0113334,88283.0,88270.0,0.011335]
[1766139463807,0.0113337,88281.0,88264.0,0.01150567]
[1766139464011,0.0113317,88297.0,88264.0,0.01150567]
[1766139464012,0.0113339,88279.0,88266.0,0.0170155]
[1766139464201,0.0056,88281.0,88269.0,0.0113351]
[1766139464403,0.0056,88281.0,88266.0,0.0170155]
[1766139464602,0.0056,88281.0,88268.0,0.0113353]
[1766139465716,0.00568,88282.0,88270.0,0.011335]
[1766139466213,0.00568,88282.0,88266.0,0.00568]
[1766139466410,0.0113311,88302.0,88266.0,0.00568]
[1766139466706,0.0113325,88290.0,88276.0,0.0113342]
[1766139466913,0.0136525,88290.0,88276.0,0.0113342]
[1766139467308,0.0136525,88290.0,88273.0,0.0113346]
[1766139467510,0.0113328,88288.0,88273.0,0.0113346]
[1766139468012,0.0113331,88286.0,88270.0,0.011335]
[1766139468216,0.0113327,88289.0,88274.0,0.0113345]
[1766139469916,0.0113329,88287.0,88274.0,0.0113345]
[1766139470718,0.0113326,88289.0,88275.0,0.0113343]
[1766139471421,0.00232,88290.0,88280.0,0.0113338]
[1766139472026,0.0136525,88290.0,88277.0,0.011334]
[1766139472319,0.00232,88290.0,88279.0,0.0113339]
[1766139472822,0.00232,88290.0,88282.0,0.0113334]
[1766139473216,0.00232,88290.0,88279.0,0.0113338]
[1766139475421,0.0113326,88289.0,88276.0,0.0113342]
[1766139476304,0.0113326,88289.0,88273.0,0.0113346]
[1766139476519,0.0113326,88289.0,88266.0,0.00568]
[1766139476724,0.0113326,88289.0,88275.0,0.0113343]
[1766139476905,0.0113329,88287.0,88272.0,0.0113347]
[1766139477110,0.0113329,88287.0,88274.0,0.0113345]
[1766139477524,0.00232,88290.0,88266.0,0.00568]
[1766139477723,0.00232,88290.0,88267.0,0.0113354]
[1766139477724,0.0113337,88281.0,88267.0,0.0113354]
[1766139478117,0.0113337,88281.0,88268.0,0.00568]
[1766139478515,0.0113339,88279.0,88264.0,0.01150577]
[1766139478819,0.00564,88281.0,88264.0,0.00016997]
[1766139479219,0.00564,88281.0,88264.0,0.01150577]
[1766139479220,0.0113341,88278.0,88264.0,0.01150577]
[1766139479525,0.0169737,88281.0,88266.0,0.0113355]
[1766139480718,0.00564,88281.0,88264.0,0.00016997]
[1766139481022,0.0113352,88269.0,88258.0,0.0022661]
[1766139481521,0.00304,88272.0,88258.0,0.0022661]
[1766139481724,0.0113351,88270.0,88258.0,0.0022661]
[1766139482212,0.00304,88272.0,88258.0,0.0022661]
[1766139482416,0.02412087,88271.0,88258.0,0.0022661]
[1766139482717,0.00304,88272.0,88258.0,0.0022661]
[1766139482916,0.02412087,88271.0,88258.0,0.0022661]
[1766139483122,0.00304,88272.0,88258.0,0.0022661]
[1766139483325,0.0143748,88272.0,88258.0,0.0022661]
[1766139484328,0.0113355,88267.0,88258.0,0.0022661]
[1766139485021,0.00304,88272.0,88258.0,1e-07]
[1766139485327,0.0113364,88260.0,88243.0,0.0113384]
[1766139485822,0.0113367,88258.0,88234.0,0.06091389]
[1766139486027,0.00304,88261.0,88243.0,0.0113385]
[1766139486223,0.00320997,88261.0,88243.0,0.01150847]
[1766139486612,0.0113365,88259.0,88245.0,0.0113382]
[1766139487219,0.00320997,88261.0,88245.0,0.0113382]
[1766139487535,0.00320997,88261.0,88243.0,0.00016997]
[1766139487536,0.00320997,88261.0,88247.0,0.0113379]
[1766139489025,0.00320997,88261.0,88243.0,0.00016997]
[1766139489219,0.00016997,88261.0,88243.0,0.00016997]
[1766139489418,0.0566263,88347.0,88260.0,0.0113362]
[1766139489419,0.0014,88268.0,88260.0,0.0113362]
[1766139489614,0.0022,88270.0,88259.0,0.0113365]
[1766139491215,0.0022,88270.0,88239.0,0.011339]
[1766139491423,0.0022,88270.0,88225.0,0.06091389]
[1766139491728,0.0113374,88252.0,88231.0,0.01134]
[1766139491920,0.00216,88251.0,88233.0,0.0113397]
[1766139492118,0.00216,88251.0,88235.0,0.0113394]
[1766139493328,0.00216,88251.0,88235.0,0.0113395]
[1766139493528,0.00264,88250.0,88234.0,0.00016997]
[1766139493827,0.00264,88250.0,88238.0,0.0113391]
[1766139494026,0.00264,88250.0,88234.0,0.01150957]
[1766139494230,0.00264,88250.0,88237.0,0.0113392]
[1766139494933,0.00264,88250.0,88234.0,0.00016997]
[1766139495127,0.00264,88250.0,88235.0,0.0113395]
[1766139496234,0.00016997,88252.0,88235.0,0.0113395]
[1766139496532,0.00016997,88252.0,88237.0,0.0113392]
[1766139497030,0.00016997,88252.0,88234.0,0.00584997]
[1766139497218,0.00016997,88252.0,88238.0,0.011339]
[1766139497423,0.00156,88261.0,88234.0,0.00584997]
[1766139497634,0.00156,88261.0,88234.0,0.00568]
[1766139498336,0.0113381,88247.0,88239.0,0.00016997]
[1766139498538,0.00016997,88256.0,88239.0,0.00016997]
[1766139498833,0.011338,88247.0,88239.0,0.00016997]
[1766139499034,0.0018,88251.0,88239.0,0.00016997]
[1766139499234,0.0018,88251.0,88234.0,0.00532]
[1766139500226,0.0018,88251.0,88234.0,0.00548997]
[1766139500227,0.0113379,88248.0,88234.0,0.00548997]
[1766139502440,0.0018,88251.0,88234.0,0.00548997]
[1766139502640,0.0018,88251.0,88234.0,0.01682957]
[1766139503045,0.0131376,88251.0,88234.0,0.01682957]
[1766139503340,0.0131375,88251.0,88234.0,0.01682957]
[1766139503946,0.0018,88251.0,88238.0,0.0113391]
[1766139504843,0.0018,88251.0,88235.0,0.0113395]
[1766139505731,0.0113374,88252.0,88238.0,0.0113391]
[1766139505932,0.00568,88251.0,88234.0,0.00548997]
[1766139508244,0.00568,88251.0,88237.0,0.0113392]
[1766139508643,0.00568,88251.0,88234.0,0.00548997]
[1766139509046,0.0113384,88244.0,88234.0,0.00548997]
[1766139509342,0.0113388,88241.0,88234.0,0.00548997]
[1766139509730,0.00568,88251.0,88234.0,0.00548997]
[1766139509731,0.0113391,88239.0,88234.0,0.00548997]
[1766139509937,0.0113376,88250.0,88218.0,2.38378712]
[1766139510233,0.01134,88232.0,88219.0,0.00568]
[1766139510433,0.0113402,88230.0,88219.0,0.00568]
[1766139510639,0.0113396,88235.0,88220.0,0.0113414]
[1766139510835,0.0113396,88235.0,88219.0,0.00568]
[1766139510836,0.0113397,88235.0,88219.0,0.00568]
[1766139511034,0.0113394,88237.0,88219.0,0.00568]
[1766139511243,0.01150937,88237.0,88219.0,0.00584997]
[1766139511441,0.01150937,88237.0,88222.0,0.0113412]
[1766139514137,0.01150937,88237.0,88219.0,0.00584997]
[1766139514138,0.0113396,88235.0,88219.0,0.01719157]
[1766139514943,0.00016997,88237.0,88223.0,0.011341]
[1766139515334,0.0113402,88230.0,88219.0,0.00016997]
[1766139515543,0.02507632,88229.0,88203.0,0.00014587]
[1766139515738,0.0113431,88208.0,88189.0,2.38172]
[1766139516051,0.0113434,88206.0,88190.0,0.00568]
[1766139516552,0.00017007,88207.0,88190.0,0.00568]
[1766139516738,9.058e-05,88206.0,88193.0,0.0113449]
[1766139518246,9.058e-05,88206.0,88190.0,0.0170253]
[1766139518941,0.01143398,88206.0,88190.0,0.0170253]
[1766139519542,9.058e-05,88206.0,88190.0,0.0170253]
[1766139521044,0.0113435,88205.0,88190.0,0.00568]
[1766139521246,9.058e-05,88206.0,88190.0,0.00568]
[1766139521247,0.0113438,88203.0,88190.0,0.00568]
[1766139521445,0.011344,88201.0,88190.0,0.00568]
[1766139522153,0.0113447,88196.0,88189.0,0.00017007]
[1766139522350,0.00236,88204.0,88189.0,7e-08]
[1766139522351,0.0113447,88195.0,88189.0,7e-08]
[1766139522855,0.0113443,88198.0,88189.0,7e-08]
[1766139523948,0.0113439,88202.0,88189.0,7e-08]
[1766139524156,0.00236,88204.0,88189.0,7e-08]
[1766139524453,0.0113441,88200.0,88189.0,7e-08]
[1766139525442,0.0113444,88198.0,88189.0,7e-08]
[1766139526143,0.00236,88204.0,88189.0,7e-08]
[1766139526144,0.0113437,88203.0,88189.0,7e-08]
[1766139526451,0.0113451,88192.0,88189.0,7e-08]
[1766139526645,0.0113453,88190.0,88189.0,7e-08]
[1766139526845,0.01145101,88190.0,88189.0,7e-08]
[1766139527048,0.01145101,88190.0,88178.0,0.00226815]
[1766139527457,0.00010571,88190.0,88178.0,0.00226815]
[1766139527752,0.00010571,88190.0,88178.0,0.01361495]
[1766139527939,0.00436,88189.0,88188.0,0.0113455]
[1766139528140,0.00017007,88207.0,88188.0,0.0113455]
[1766139528350,0.00017007,88207.0,88178.0,0.00226815]
[1766139528840,0.00017007,88207.0,88192.0,0.011345]
[1766139529050,7.219e-05,88206.0,88194.0,0.0113447]
[1766139529356,0.00568,88205.0,88178.0,0.00226815]
[1766139529556,0.00568,88205.0,88192.0,0.011345]
[1766139530756,0.00568,88205.0,88197.0,0.0113444]
[1766139532354,6e-08,88207.0,88205.0,0.0113434]
[1766139532569,2.38272,88226.0,88205.0,0.0113434]
[1766139532853,0.00568,88225.0,88202.0,0.0113437]
[1766139533053,0.0113415,88220.0,88192.0,0.011345]
[1766139533256,0.0113417,88219.0,88192.0,0.011345]
[1766139533449,0.00017007,88214.0,88197.0,0.00017007]
[1766139534059,0.0113424,88213.0,88198.0,0.0113442]
[1766139534556,0.0113427,88211.0,88197.0,0.00017007]
[1766139534859,0.01151237,88214.0,88197.0,0.00017007]
[1766139535247,0.01151237,88214.0,88199.0,0.0113441]
[1766139536452,0.0113426,88212.0,88197.0,0.00017007]
[1766139536647,0.00017007,88214.0,88197.0,0.00017007]
[1766139536848,0.0113427,88211.0,88197.0,0.00017007]
[1766139537957,0.01151237,88214.0,88198.0,0.0113443]
[1766139538158,0.01151237,88214.0,88200.0,0.011344]
[1766139538758,0.00017007,88214.0,88198.0,0.0113442]
[1766139538961,0.00017007,88214.0,88197.0,0.00017007]
[1766139539359,0.01151237,88214.0,88197.0,0.01151437]
[1766139539964,0.01151237,88214.0,88199.0,0.0113441]
[1766139540564,0.0113425,88212.0,88199.0,0.0113441]
[1766139541063,0.00568,88211.0,88199.0,0.0113441]
[1766139541360,0.00568,88211.0,88198.0,0.0113443]
[1766139541664,0.00017007,88214.0,88197.0,0.00017007]
[1766139541858,0.00017007,88214.0,88203.0,0.0113436]
[1766139542158,0.0016,88213.0,88203.0,0.0113436]
[1766139542560,0.00017007,88214.0,88197.0,0.00017007]
[1766139542561,0.00017007,88214.0,88205.0,0.0113433]
[1766139542763,0.0566127,88368.0,88197.0,0.00017007]
[1766139542764,0.0113409,88225.0,88199.0,0.0113442]
[1766139542966,0.0016,88224.0,88199.0,0.0113442]
[1766139543464,0.0113411,88223.0,88199.0,0.0113442]
[1766139543665,0.0113411,88223.0,88209.0,0.0113428]
[1766139544162,0.0016,88224.0,88211.0,0.0113426]
[1766139545561,0.1135,88278.0,88199.0,2.38272]
[1766139545765,0.0113392,88238.0,88221.0,0.0113412]
[1766139546063,0.0056,88237.0,88221.0,0.0113412]
[1766139548066,0.0056,88237.0,88225.0,0.0113408]
[1766139548365,0.00436,88244.0,88236.0,0.0113394]
[1766139548565,0.00436,88245.0,88236.0,0.0113394]
[1766139549064,0.00436,88245.0,88233.0,0.0113398]
[1766139549254,0.00436,88245.0,88235.0,0.0113395]
[1766139549456,0.00396,88246.0,88238.0,0.0113391]
[1766139549657,0.00017002,88248.0,88240.0,0.0113388]
[1766139549862,0.00384,88247.0,88236.0,0.0113394]
[1766139550063,0.00384,88247.0,88233.0,0.0113398]
[1766139550461,0.00384,88247.0,88235.0,0.0113395]
[1766139550665,0.00384,88247.0,88232.0,0.0113399]
[1766139550858,0.00384,88247.0,88234.0,0.0113396]
[1766139551057,0.00384,88247.0,88232.0,0.0113399]
[1766139556668,0.0113381,88246.0,88230.0,0.00017007]
[1766139557573,0.0113387,88242.0,88230.0,0.00017007]
[1766139557871,0.0113383,88245.0,88230.0,0.00017007]
[1766139558170,0.0113386,88243.0,88230.0,0.00017007]
[1766139560373,0.0113386,88243.0,88230.0,0.01151027]
[1766139561273,0.00384,88247.0,88230.0,0.00017007]
[1766139561474,0.00384,88247.0,88230.0,7e-08]
[1766139562072,0.0113384,88244.0,88230.0,7e-08]
[1766139562271,0.0113387,88242.0,88230.0,7e-08]
[1766139567179,0.00384,88247.0,88230.0,7e-08]
[1766139567376,0.0113391,88239.0,88225.0,7.7e-07]
[1766139567573,0.00368,88238.0,88225.0,7.7e-07]
[1766139567779,0.0113397,88234.0,88225.0,7.7e-07]
[1766139568170,0.0170194,88237.0,88225.0,7.7e-07]
[1766139568975,0.00568,88237.0,88215.0,0.011342]
[1766139569182,0.00568,88237.0,88208.0,2.38192]
[1766139569183,0.00568,88237.0,88211.0,0.0113425]
[1766139569377,0.00568,88237.0,88213.0,0.0113423]
[1766139569577,0.00568,88237.0,88201.0,0.0113439]
[1766139569884,0.0113418,88218.0,88201.0,0.0136239]
[1766139570180,0.01151187,88218.0,88203.0,0.0113436]
[1766139571279,0.00017007,88218.0,88201.0,0.00245007]
[1766139571482,0.0113425,88213.0,88201.0,0.00245007]
[1766139571879,0.0113427,88211.0,88201.0,0.00017007]
[1766139572783,0.00568,88210.0,88193.0,0.00568]
[1766139572979,0.00568,88210.0,88195.0,0.0113446]
[1766139573482,0.00568,88210.0,88197.0,0.0113443]
[1766139575291,0.00017007,88218.0,88203.0,0.0113436]
[1766139575487,0.00564,88217.0,88203.0,0.0113436]
[1766139575788,0.00017007,88218.0,88195.0,0.00017007]
[1766139575973,0.00017007,88218.0,88208.0,0.0113429]
[1766139576180,7e-08,88218.0,88208.0,0.0113429]
[1766139577289,7e-08,88218.0,88210.0,0.0113427]
[1766139578590,7e-08,88218.0,88211.0,0.0113425]
[1766139579294,7e-08,88218.0,88208.0,0.011343]
[1766139580484,7e-08,88218.0,88205.0,0.0113434]
[1766139580785,7e-08,88218.0,88201.0,0.0113439]
[1766139580992,0.01134187,88218.0,88203.0,0.0113436]
[1766139581687,7e-08,88218.0,88203.0,0.0113436]
[1766139582897,7e-08,88218.0,88195.0,0.00017007]
[1766139583188,7e-08,88218.0,88207.0,0.0113431]
[1766139583492,7e-08,88218.0,88208.0,0.0113429]
[1766139584990,7e-08,88218.0,88201.0,0.00568]
[1766139585193,7e-08,88218.0,88211.0,0.0113425]
[1766139585396,7e-08,88222.0,88211.0,0.0113425]
[1766139588794,7e-08,88222.0,88203.0,0.0113436]
[1766139590186,7e-08,88222.0,88211.0,0.0113425]
[1766139591694,7e-08,88222.0,88213.0,0.0113423]
[1766139592797,7e-08,88222.0,88210.0,0.0113427]
[1766139594100,0.01134137,88222.0,88207.0,0.011343]
[1766139594297,0.0113415,88220.0,88201.0,0.00568]
[1766139594496,0.0113415,88220.0,88206.0,0.0113432]
[1766139594697,0.0113418,88218.0,88206.0,0.0113432]
[1766139595290,0.0113414,88221.0,88206.0,0.0113432]
[1766139596888,0.0113416,88219.0,88206.0,0.0113432]
[1766139599801,0.011342,88216.0,88201.0,0.00568]
[1766139600106,7e-08,88222.0,88204.0,0.0113435]
[1766139600301,0.0113417,88218.0,88204.0,0.0113435]
[1766139600701,0.0113417,88218.0,88206.0,0.0113433]
[1766139600898,0.0113414,88221.0,88208.0,0.011343]
[1766139601091,0.01134127,88222.0,88201.0,0.00568]
[1766139601395,7e-08,88222.0,88207.0,0.0113431]
[1766139602195,0.0113378,88249.0,88205.0,0.0113434]
[1766139602495,0.0113382,88246.0,88222.0,0.0113412]
[1766139602695,0.0113395,88236.0,88214.0,0.00568]
[1766139602896,0.00568,88235.0,88214.0,0.00568]
[1766139603300,0.00568,88235.0,88216.0,0.00017007]
[1766139603301,0.00017007,88233.0,88216.0,0.00017007]
[1766139603796,0.00017007,88233.0,88218.0,0.0113417]
[1766139604003,0.0113399,88232.0,88218.0,0.0113417]
[1766139604299,0.00017007,88233.0,88216.0,0.00017007]
[1766139605202,0.00017007,88233.0,88221.0,0.0113412]
[1766139605698,0.00017007,88233.0,88223.0,0.011341]
[1766139606000,7e-08,88233.0,88216.0,0.00017007]
[1766139606597,7e-08,88233.0,88223.0,0.011341]
[1766139607400,7e-08,88233.0,88225.0,0.0113408]
[1766139608105,7e-08,88233.0,88216.0,0.00017007]
[1766139608300,7e-08,88233.0,88221.0,0.0113413]
[1766139608899,7e-08,88233.0,88180.0,0.0113466]
[1766139608900,0.01134,88232.0,88180.0,0.0113466]
[1766139609104,7e-08,88233.0,88195.0,0.00568]
[1766139609405,0.011343,88209.0,88195.0,0.00568]
[1766139609589,0.0113425,88212.0,88195.0,0.00568]
[1766139609900,0.0113429,88209.0,88195.0,0.00568]
[1766139610096,0.0113429,88209.0,88195.0,0.00585007]
[1766139610302,0.00017007,88212.0,88195.0,7e-08]
[1766139610602,0.0113438,88203.0,88195.0,7e-08]
[1766139612004,0.0113434,88205.0,88195.0,7e-08]
[1766139612400,0.0113431,88208.0,88195.0,7e-08]
[1766139612601,0.00017007,88212.0,88195.0,0.01134467]
[1766139612789,0.00236,88211.0,88198.0,0.0113442]
[1766139612996,0.00276,88217.0,88200.0,0.011344]
[1766139613906,0.00276,88217.0,88202.0,0.0113437]
[1766139614096,0.00276,88217.0,88199.0,0.0113441]
[1766139616303,0.00276,88217.0,88202.0,0.0113438]
[1766139616609,7e-08,88218.0,88195.0,7e-08]
[1766139616809,0.0113387,88242.0,88213.0,0.0113423]
[1766139616999,0.0113403,88230.0,88213.0,0.0113423]
[1766139617194,0.00568,88229.0,88215.0,0.011342]
[1766139617394,0.00432,88231.0,88215.0,0.011342]
[1766139617596,0.00432,88231.0,88217.0,0.0113418]
[1766139618216,0.00432,88231.0,88219.0,0.0113415]
[1766139619211,0.00432,88231.0,88216.0,0.0113419]
[1766139620914,0.00432,88231.0,88214.0,0.00017007]
[1766139621111,0.00432,88231.0,88223.0,0.0113411]
[1766139621501,0.00017002,88232.0,88223.0,0.0113411]
[1766139621912,0.0113387,88242.0,88225.0,0.0113408]
[1766139622102,0.0056,88241.0,88224.0,0.0113408]